Workbook

Sheet TDSheet
A3: Звіт
A4: про виконання паспорта бюджетної програми місцевого бюджету станом на 01.01.2019
A6: 1. | B6: 913123 | E6: Управління соціальних служб для сім’ї, дітей та молоді Луцької міської ради
B7: (КПКВК МБ) | E7: (найменування головного розпорядника)
A8: 2. | B8: =B6 -> 913123 | E8: Управління соціальних служб для сім’ї, дітей та молоді Луцької міської ради
B9: (КПКВК МБ) | E9: (найменування відповідального виконавця)
A10: 3. | B10: =B6 -> 913123 | E10: 1040 | H10: Заходи державної політики з питань сім'ї
B11: (КПКВК МБ) | E11: (КФКВК) | F11: 1 | H11: (найменування бюджетної програми)
A13: 4. | B13: Видатки та надання кредитів за бюдженою програмою за звітний період
A14: Затверджено паспортом бюджетної програми | H14: Касові видатки (надані кредити) | N14: Відхилення
A15: Загальний фонд | D15: Спеціальний фонд | F15: Разом | H15: Загальний фонд | J15: Спеціальний фонд | L15: Разом | N15: Загальний фонд | P15: Спеціальний фонд | Q15: разом
A16: 1015000 | D16: 0 | F16: =A16-D16 -> 1015000 | H16: 1014996.51 | J16: 0 | L16: =H16-J16 -> 1014996.51 | N16: =A16-H16 -> 3.49 | P16: =D16-J16 -> 0 | Q16: =F16-L16 -> 3.49
A18: 5. Обсяги фінансування бюджетної програми за звітний період у розрізі підпрограм та завдань | Q18: (грн)
A19: № з/п | C19: КПКВК | D19: КФКВК | E19: Підпрограма/завдання бюджетної програми | L19: Затверджені паспортом загальний фонд | N19: Касові видатки загальний фонд | P19: Відхилення | Q19: Пояснення щодо причин відхилення
A21: 1 | C21: 2 | D21: 3 | E21: 4 | L21: 5 | N21: 6 | P21: 7
A22: 1 | C22: 913123 | D22: 1040 | E22: Здійснення заходів із забезпечення соціальної підтримки та надання соціальних послуг дітям, молоді та сім'ям, які опинились у складних життєвих обставинах | L22: =A16 -> 1015000 | N22: =L16 -> 1014996.51 | P22: =L22-N22 -> 3.49
L23: 191
A24: Усього | L24: =L22 -> 1015000 | N24: 0 | P24: =P22 -> 3.49
A26: 6. Видатки на реалізацію регіональних цільових програм, які виконуються у межах бюджетної програми, за звітний період: | Q26: (грн)
A27: Назва регіональної цільової програми та підпрограми | K27: КПКВК | L27: загальний фонд | N27: спеціальний фонд | P27: Разом
A28: 1 | K28: 2 | L28: 3 | N28: 4 | P28: 5
A29: Програма надання інтегрованих соціальних послуг з питань сім’ї, дітей та молоді, попередження насильства в сім’ї та протидії торгівлі людьми на 2018 – 2020 роки, затвердженої рішенням міської ради від 29.11.2017 №34/12 | K29: 2282 | L29: 757999.58 | N29: 0 | P29: =L29+N29 -> 757999.58
A30: Програма соціально-правового захисту дітей на 2017-2021 роки, затвердженої рішенням міської ради від 01.12.2016 №15/31 | K30: 2282 | L30: 173000 | N30: 0 | P30: =L30+N30 -> 173000
A31: Програма підтримки учасників бойових дій, бійців-добровольців, членів їх сімей, а також сімей загиблих (померлих) військовослужбовців, які зареєстровані в м.Луцьку, на 2018-2020 роки у новій редакції, яка затверджена рішенням міської ради від 26.09.2018 № 47/57 | K31: 2282 | L31: 83996.93 | N31: 0 | P31: =L31+N31 -> 83996.93
A32: Усього | L32: =SUM(L29:M31) -> 1014996.51 | N32: =SUM(N29:O31) -> 0 | P32: =SUM(P29:Q31) -> 1014996.51
A34: 7. Результативні показники бюджетної програми у розрізі підпрограм і завдань:
A35: № з/п | C35: КПКВК | D35: Показники | G35: Одиниця виміру | H35: Джерело інформації | K35: Затверджені паспортом бюджетної програми за звітний період | M35: Виконано за звітний період (касові видатки/надані кредити) | P35: Відхилення
A37: 1 | C37: 2 | D37: 3 | G37: 4 | H37: 5 | K37: 6 | M37: 7 | P37: 8
A38: 1 | C38: 913123 | D38: Здійснення заходів із забезпечення соціальної підтримки та надання соціальних послуг дітям, молоді та сім'ям, які опинились у складних життєвих обставинах
A39: затрат
A40: 1 | C40: =C38 -> 913123 | D40: Кількість заходів управління СССДМ | G40: одиниць | H40: звітність установ | K40: 235 | M40: 256 | P40: =M40-K40 -> 21
A41: 2 | C41: 913123 | D41: Кількість спеціалістів,залучених до заходів | G41: осіб | H41: Штатний розпис | K41: 13 | M41: 14 | P41: =M41-K41 -> 1
A42: Пояснення — Значне збільшення кількості і маштабності заходів
A43: продукту
A44: 1 | C44: 913123 | D44: кількість заходів управління | G44: од. | H44: звіт | K44: =K40 -> 235 | M44: =M40 -> 256 | P44: =M44-K44 -> 21
A45: 2 | C45: 913123 | D45: Кількість прийомних сімей,дитячих будинків сімейного типу | G45: одиниць | H45: звіт про проведення заходів | K45: 5 | M45: 5 | P45: 0
A46: 3 | C46: 913123 | D46: Кількість сімей,в яких виховуються діти сироти та діти позбавлені батьківского піклування | G46: одиниць | H46: звіт про проведення заходів | K46: 145 | M46: 137 | P46: -8
A47: 4 | C47: 913123 | D47: Кількість сімей,які опинились в складних життевих обставинах,які перебувають на обліку в УСССДМ | G47: одиниць | H47: звіт про проведення заходів | K47: 281 | M47: 289 | P47: 8
A48: 5 | C48: 913123 | D48: Кількість учасників заходів проведених УСССДМ | G48: осіб | H48: звіт про проведення заходів | K48: 15262 | M48: 14897 | P48: -365
A49: 6 | C49: 913123 | D49: КІлькість дітей,молоді та сімей яким надані індівидуальні соціальні послуги | G49: осіб | H49: звіт про проведення заходів | K49: 10097 | M49: 13638 | P49: 3541
A50: Пояснення — Значне збільшення кількості і маштабності заходів
A51: ефективності
A52: 1 | C52: 913123 | D52: Середні витрати на 1 захід з проведених УСССДМ | G52: грн. | H52: кошторис | K52: =L16/K40 -> 4319.134085 | M52: =L32/M40 -> 3964.830117 | P52: =M52-K52 -> -354.3039679
A53: 2 | C53: 913123 | D53: Середні витрати на 1 учасника заходів проведених УСССДМ | G53: грн. | H53: кошторис | K53: =K52/K48 -> 0.2829992193 | L53: =L52/L48 ->  | M53: =M52/M48 -> 0.2661495682 | P53: =M53-K53 -> -0.01684965113
A54: 3 | C54: 913123 | D54: Середні витрати на надання одної соц.послуги | G54: грн. | H54: кошторис | K54: =L16/(K45+K48+K46+K47+K49+K49) -> 28.28312509 | L54: =271164/(L45+L46+L47+L49+L49) ->  | M54: =L16/(M45+M48+M46+M47+M49+M49) -> 23.82397216 | P54: =M54-K54 -> -4.459152925
A55: Пояснення — Економія на маштабності заходів
A56: якості
A57: 1 | C57: 913123 | D57: динаміка кількості осіб регіону, які перебувають у складних життєвих обставинах, внаслідок проведених заходів та наданих управлінням соціальних служб для сім'ї, дітей та молоді послуг порівняно з минулим роком | G57: % | H57: звіт | K57: 100 | M57: 137.05 | P57: =M57-K57 -> 37.05
A58: 2 | C58: 913123 | D58: динаміка кількості учасників, охоплених заходами управління соціальних служб для сім’ї, дітей та молоді, порівняно з минулим роком | G58: % | H58: звіт | K58: 100 | M58: 100 | P58: =M58-K58 -> 0
A59: Збільшення динаміки осіб яким надано соціальні послуги зумовило збільшення штатних одиниць управління, що дозволяє швидше та якісніше виконувати поставлені завдання. Скрутне економічне становище в державі нажаль призводить до збільшенням кількості сімей, які опиняються в складних життєвих обставинах. Працівниками управління всебічно проводяться заходи по контролю виконання батьківських обов'язків у таких сім'ях. А також щорічно до великих свят і перед навчальним роком даним сім'ям надається допомога. Також проводиться щоденна робота з громадськими організаціями де виховуються особливі діти, що дає змогу як найкраще соціалізувати дану категорію дітей у громаді.
A61: 8. Джерела фінансування інвестиційних проектів у розрізі підпрограм (2) | Q61: (тис.грн)
A62: Код | C62: Найменування джерел надходжень | F62: КПКВК | G62: Касові видатки станом на 1 січня звітного періоду | J62: План видатків звітного періоду | M62: Прогноз видатків до кінця реалізації інвестиційного проекту (3) | P62: Пояснення, що характеризують джерела фінансування
G63: загальний фонд | H63: спеціальний фонд | I63: Разом | J63: загальний фонд | K63: спеціальний фонд | L63: Разом | M63: загальний фонд | N63: спеціальний фонд | O63: Разом
A64: 1 | C64: 2 | F64: 3 | G64: 4 | H64: 5 | I64: 6 | J64: 7 | K64: 8 | L64: 9 | M64: 10 | N64: 11 | O64: 12 | P64: 13
A65: УСЬОГО:
B71: Начальник управління соціальних служб для сім’ї, дітей та молоді Луцької міської ради | N71: Л.В. Галан
G72: (підпис) | N72: (ініціали та прізвище)
B74: ПОГОДЖЕНО:
B75: Головний спеціаліст, бухгалтер управління соціальних служб для сім’ї, дітей та молоді Луцької міської ради | N75: К.В. Глинюк
G76: (підпис) | N76: (ініціали та прізвище)
